bitfinex/quotes_SOLUSD_20230112
["timestamp","ask_amount","ask_price","bid_price","bid_amount"]
[1673486704766,0.96,16.568,16.556,20.0]
[1673486704972,1.55557363,16.567,16.556,20.0]
[1673486705186,1.64137055,16.568,16.556,20.0]
[1673486705408,0.96,16.567,16.556,20.0]
[1673486705618,45.29,16.566,16.556,20.0]
[1673486705828,17.96,16.565,16.556,20.0]
[1673486706150,17.96,16.565,16.551,152.268798]
[1673486706151,20.0,16.564,16.551,152.268798]
[1673486706460,16.44,16.56,16.553,63.3859254]
[1673486706779,19.77648421,16.559,16.553,63.3859254]
[1673486707092,19.77648421,16.559,16.54,0.01136526]
[1673486707093,3.0744512,16.552,16.54,0.01136526]
[1673486707290,3.0744512,16.55,16.54,0.01136526]
[1673486707498,3.0744512,16.548,16.54,0.01136526]
[1673486707703,46.3,16.549,16.54,0.01136526]
[1673486707704,3.0744512,16.546,16.54,0.01136526]
[1673486707921,45.34,16.547,16.54,0.01136526]
[1673486707922,3.0744512,16.544,16.54,0.01136526]
[1673486708124,20.0744512,16.544,16.54,0.01136526]
[1673486708333,65.4244512,16.544,16.54,24.20698926]
[1673486708550,3.0744512,16.542,16.54,24.20698926]
[1673486708756,20.0744512,16.542,16.54,24.20698926]
[1673486708968,24.0344512,16.541,16.54,13.20698926]
[1673486709188,61.0344512,16.541,16.54,13.20698926]
[1673486709380,61.0344512,16.541,16.539,0.01123906]
[1673486709381,106.3944512,16.541,16.539,0.01123906]
[1673486709588,68.4344512,16.54,16.539,0.01123906]
[1673486709797,69.3944512,16.54,16.539,0.01123906]
[1673486711078,69.3944512,16.54,16.53,63.1091386]
[1673486711079,20.0,16.539,16.53,63.1091386]
[1673486711289,45.37,16.538,16.53,62.1091386]
[1673486711518,23.0744512,16.537,16.53,62.1091386]
[1673486711711,3.0744512,16.535,16.53,62.1091386]
[1673486711915,3.0744512,16.533,16.53,62.1091386]
[1673486712126,3.0744512,16.537,16.53,62.1091386]
[1673486712358,0.96,16.536,16.53,62.1091386]
[1673486712572,3.0744512,16.538,16.53,62.1091386]
[1673486712761,3.0744512,16.536,16.53,62.1091386]
[1673486712971,3.0744512,16.534,16.53,62.1091386]
[1673486713183,3.0744512,16.532,16.53,62.1091386]
[1673486713392,17.0,16.532,16.53,62.1091386]
[1673486713599,4.0344512,16.531,16.53,62.1091386]
[1673486713811,3.0744512,16.531,16.53,62.1091386]
[1673486714017,20.0,16.544,16.531,20.0]
[1673486714231,16.48,16.54,16.531,20.0]
[1673486715390,61.84,16.54,16.531,20.0]
[1673486715601,16.48,16.54,16.531,20.0]
[1673486716465,0.96,16.539,16.531,20.0]
[1673486716779,17.96,16.539,16.53,62.1091386]
[1673486717817,17.0,16.539,16.53,62.1091386]
[1673486718228,45.37,16.538,16.53,62.1091386]
[1673486718439,17.0,16.537,16.531,20.0]
[1673486718666,16.33,16.54,16.531,20.0]
[1673486718857,16.33,16.54,16.53,62.1091386]
[1673486719279,45.36,16.539,16.531,0.30246]
[1673486719820,17.96,16.538,16.531,0.30246]
[1673486720013,45.37,16.537,16.531,0.30246]
[1673486720218,20.0,16.535,16.531,0.30246]
[1673486720452,63.34,16.534,16.531,0.30246]
[1673486722550,45.38,16.534,16.531,0.30246]
[1673486722871,45.37,16.537,16.531,0.30246]
[1673486723908,20.0,16.535,16.531,0.30246]
[1673486724119,17.0,16.534,16.531,0.30246]
[1673486724322,17.0,16.536,16.531,0.30246]
[1673486724535,102.5,16.55,16.532,1.716]
[1673486724954,45.34,16.549,16.532,20.86096728]
[1673486725185,45.34,16.549,16.532,1.716]
[1673486725396,82.5,16.55,16.532,1.716]
[1673486725924,82.5,16.55,16.532,21.716]
[1673486726115,82.5,16.55,16.532,40.86096728]
[1673486726323,16.62,16.55,16.532,40.86096728]
[1673486728776,16.62,16.55,16.533,1.92]
[1673486729201,45.32,16.554,16.533,1.92]
[1673486729387,45.31,16.559,16.534,20.0]
[1673486729723,45.31,16.559,16.535,38.92]
[1673486729910,16.35,16.56,16.536,20.0]
[1673486730126,16.35,16.56,16.537,139.6542]
[1673486730440,16.35,16.56,16.538,20.0]
[1673486730656,16.35,16.56,16.54,20.0]
[1673486730871,20.0,16.559,16.54,20.0]
[1673486731085,45.31,16.558,16.54,20.0]
[1673486731297,65.31,16.559,16.54,20.0]
[1673486731819,16.68396554,16.558,16.54,20.0]
[1673486732034,32.81,16.557,16.541,15.65752391]
[1673486732234,45.31,16.558,16.541,15.65752391]
[1673486732450,127.56,16.56,16.541,15.65752391]
[1673486732857,20.0,16.559,16.541,15.65752391]
[1673486733487,103.25000001,16.56,16.541,15.65752391]
[1673486733826,20.0,16.559,16.541,15.65752391]
[1673486734035,103.25000001,16.56,16.541,15.65752391]
[1673486734036,103.25000001,16.56,16.542,19.14496728]
[1673486734228,83.25000001,16.56,16.543,24.68986927]
[1673486734559,83.25000001,16.56,16.544,39.14496728]
[1673486734772,83.25000001,16.56,16.545,27.55511433]
[1673486734964,17.43000001,16.56,16.545,46.70008161]
[1673486735171,17.43000001,16.56,16.546,20.0]
[1673486735381,1.00000001,16.56,16.547,48.59515931]
[1673486735607,1.00000001,16.56,16.549,20.0]
[1673486735801,1.00000001,16.56,16.55,31.1244512]
[1673486736975,1.00000001,16.56,16.551,20.0]
[1673486737293,1.00000001,16.56,16.552,32.3644512]
[1673486737812,1.00000001,16.56,16.553,20.0]
[1673486738025,1.00000001,16.56,16.554,3.0744512]
[1673486738236,1.00000001,16.56,16.553,3.0744512]
[1673486738950,17.44000001,16.56,16.553,3.0744512]
[1673486739162,62.31,16.559,16.552,3.0744512]
[1673486739391,17.0,16.559,16.549,3.0744512]
[1673486739806,0.96,16.558,16.548,3.0744512]
[1673486740630,0.96,16.558,16.548,23.0744512]
[1673486740841,0.96,16.558,16.55,3.0744512]
[1673486741370,0.96,16.558,16.549,3.0744512]
[1673486741580,46.27,16.558,16.549,3.0744512]
[1673486741803,17.0,16.557,16.549,3.0744512]
[1673486742024,0.96,16.558,16.549,3.0744512]
[1673486742424,1.00000001,16.559,16.549,3.0744512]
[1673486742633,1.00000001,16.559,16.551,23.0744512]
[1673486742851,1.00000001,16.559,16.553,3.0744512]
[1673486745187,45.29,16.567,16.554,20.0]
[1673486745376,396.1,16.568,16.555,3.0744512]
[1673486745588,67.6275458,16.57,16.557,20.0]
[1673486745913,67.6275458,16.57,16.558,3.0744512]
[1673486746220,45.28,16.569,16.558,3.0744512]
[1673486746446,112.9075458,16.57,16.558,3.0744512]
[1673486746958,67.6275458,16.57,16.558,3.0744512]
[1673486747170,17.96,16.569,16.558,3.0744512]
[1673486747376,63.24,16.569,16.558,3.0744512]
[1673486747586,17.96,16.569,16.558,3.0744512]
[1673486747798,63.24,16.569,16.558,3.0744512]
[1673486748005,62.28,16.569,16.558,3.0744512]
[1673486748320,67.6275458,16.57,16.558,3.0744512]
[1673486748642,42.7975458,16.57,16.56,20.0]
[1673486749044,20.0,16.577,16.56,20.0]
[1673486749265,42.7975458,16.582,16.56,20.0]
[1673486749266,42.7975458,16.582,16.561,48.3744512]
[1673486749466,42.7975458,16.582,16.561,162.2646512]
[1673486749678,42.7975458,16.582,16.562,40.96]
[1673486749896,42.7975458,16.582,16.563,66.3344512]
[1673486750215,42.7975458,16.582,16.565,3.0744512]
[1673486750423,42.7975458,16.582,16.567,3.0744512]
[1673486750620,42.7975458,16.582,16.569,3.0744512]
[1673486750828,42.7975458,16.582,16.571,3.0744512]
[1673486751270,45.25,16.581,16.571,3.0744512]
[1673486751478,45.25,16.581,16.57,23.0744512]
[1673486751792,45.25,16.581,16.57,3.0744512]
[1673486752196,42.7975458,16.582,16.57,3.0744512]
[1673486752406,17.0,16.581,16.57,3.0744512]
[1673486752611,45.25,16.58,16.57,3.0744512]
[1673486752826,17.0,16.579,16.571,48.3544512]
[1673486753056,42.7975458,16.582,16.571,3.0744512]
[1673486753368,42.7975458,16.582,16.57,20.0]
[1673486753583,42.7975458,16.582,16.571,48.3544512]
[1673486754186,42.7975458,16.582,16.572,20.0]
[1673486754399,42.7975458,16.582,16.573,45.27]
[1673486754631,42.7975458,16.582,16.574,20.0]
[1673486757654,42.7975458,16.582,16.571,3.0744512]
[1673486757655,59.48151134,16.582,16.571,3.0744512]
[1673486757868,59.48151134,16.582,16.566,3.0744512]
[1673486757869,24.65,16.58,16.566,3.0744512]
[1673486758080,24.65,16.58,16.565,20.0]
[1673486758081,63.21,16.579,16.564,3.0744512]
[1673486758306,63.21,16.579,16.564,23.0744512]
[1673486758620,63.21,16.579,16.567,3.0744512]
[1673486759882,45.25,16.579,16.567,3.0744512]
[1673486760295,45.25,16.579,16.567,22.21941848]
[1673486760504,45.25,16.579,16.567,3.0744512]
[1673486760835,24.65,16.58,16.567,3.0744512]
[1673486761145,45.25,16.579,16.567,3.0744512]
[1673486761357,45.25,16.581,16.567,48.3644512]
[1673486761559,45.25,16.581,16.57,3.0744512]
[1673486762517,42.7975458,16.582,16.572,20.0]
[1673486762819,42.7975458,16.582,16.572,65.27]
[1673486763981,42.7975458,16.582,16.573,20.96]
[1673486764181,42.7975458,16.582,16.574,45.27]
[1673486764385,42.7975458,16.582,16.575,20.0]
[1673486764698,42.7975458,16.582,16.576,65.26]
[1673486764914,42.7975458,16.582,16.577,20.0]
[1673486765540,38.8998016,16.584,16.578,20.0]
[1673486765759,38.8998016,16.584,16.58,2.28641545]
[1673486766084,45.21,16.594,16.581,20.0]
[1673486766396,42.7975458,16.595,16.582,2.46842681]
[1673486767122,88.0075458,16.595,16.581,2.46842681]
[1673486767332,42.7975458,16.595,16.58,2.46842681]
[1673486767558,20.0,16.594,16.58,47.71842681]
[1673486768288,88.0075458,16.595,16.58,2.46842681]
[1673486768483,88.0075458,16.595,16.582,2.46842681]
[1673486768684,88.0075458,16.595,16.581,45.25]
[1673486768685,88.0075458,16.595,16.581,2.46842681]
[1673486768897,42.7975458,16.595,16.583,2.46842681]
[1673486769318,42.7975458,16.595,16.581,2.46842681]
[1673486769552,42.7975458,16.595,16.581,22.46842681]
[1673486769742,42.7975458,16.595,16.583,2.46842681]
[1673486770600,42.7975458,16.595,16.582,22.46842681]
[1673486770804,42.7975458,16.595,16.583,49.62842681]
[1673486771018,42.7975458,16.595,16.584,40.0]
[1673486771210,42.7975458,16.595,16.585,18.92]
[1673486771425,42.7975458,16.595,16.587,20.0]
[1673486771635,42.7975458,16.595,16.588,20.0]
[1673486772053,45.21,16.594,16.583,2.05673651]
[1673486772391,45.21,16.594,16.582,2.05673651]
[1673486772601,88.0075458,16.595,16.582,2.05673651]
[1673486772787,42.7975458,16.595,16.582,2.05673651]
[1673486773213,17.0,16.594,16.582,2.05673651]
[1673486773753,42.7975458,16.595,16.584,20.0]
[1673486773945,42.7975458,16.595,16.585,64.16]
[1673486774154,42.7975458,16.595,16.585,83.30496728]
[1673486774360,42.7975458,16.595,16.586,39.14496728]
[1673486774674,42.7975458,16.595,16.588,20.0]
[1673486775532,42.7975458,16.595,16.587,20.0]
[1673486775746,45.21,16.594,16.58,20.0]
[1673486775939,17.0,16.593,16.579,119.0663]
[1673486776273,20.0,16.591,16.579,119.0663]
[1673486776484,62.22,16.59,16.579,119.0663]
[1673486776898,17.0,16.59,16.579,119.0663]
[1673486777111,45.21,16.594,16.58,20.0]
[1673486777322,45.21,16.594,16.581,21.92]
[1673486777532,45.21,16.594,16.581,20.0]
[1673486777955,45.21,16.594,16.58,20.0]
[1673486778384,20.0,16.593,16.58,20.0]
[1673486778603,45.22,16.592,16.58,20.0]
[1673486778922,17.0,16.591,16.58,20.0]
[1673486779307,45.22,16.59,16.58,20.0]
[1673486779516,17.0,16.589,16.58,20.0]
[1673486781740,45.23,16.588,16.58,20.0]
[1673486782162,45.23,16.589,16.58,20.0]
[1673486782667,45.23,16.589,16.577,20.0]
[1673486782873,45.23,16.589,16.573,20.0]
[1673486783306,20.0,16.587,16.572,20.0]
[1673486783527,62.24,16.586,16.57,20.0]
[1673486783952,62.24,16.586,16.569,20.0]
[1673486784146,20.0,16.585,16.569,20.0]
[1673486784355,62.24,16.584,16.569,20.0]
[1673486784891,62.24,16.584,16.567,113.0421]
[1673486785103,62.24,16.584,16.568,20.0]
[1673486785293,20.0,16.583,16.568,20.0]
[1673486785504,62.25,16.582,16.568,20.0]
[1673486786151,24.66,16.58,16.568,20.0]
[1673486786342,62.25,16.579,16.566,20.0]
[1673486786550,62.25,16.579,16.562,181.9165]
[1673486786551,62.25,16.579,16.562,136.6165]
[1673486787096,0.96,16.578,16.56,20.0]
[1673486787416,45.26,16.577,16.562,19.14496728]
[1673486787633,24.65,16.57,16.558,112.0852]
[1673486787817,63.24,16.569,16.558,112.0852]
[1673486788028,17.96,16.569,16.558,112.0852]
[1673486788253,24.65,16.57,16.559,39.14496728]
[1673486788669,24.65,16.57,16.56,19.14496728]
[1673486789496,124.36,16.57,16.553,44.2373494]
[1673486789715,82.28,16.569,16.553,44.2373494]
[1673486790147,20.0,16.568,16.553,44.2373494]
[1673486790458,63.25,16.567,16.553,44.2373494]
[1673486790885,20.0,16.566,16.553,44.2373494]
[1673486791092,62.29,16.565,16.553,44.2373494]
[1673486791285,0.96,16.564,16.553,44.2373494]
[1673486791496,45.3,16.563,16.553,44.2373494]
[1673486791921,17.96,16.562,16.553,44.2373494]
[1673486795313,45.29,16.567,16.554,20.0]
[1673486795627,20.0,16.568,16.554,20.0]
[1673486795819,45.29,16.567,16.554,20.0]
[1673486796024,45.29,16.567,16.554,65.32]
[1673486796258,45.28,16.569,16.554,65.32]
[1673486796464,45.28,16.569,16.553,109.5673494]
[1673486796651,45.28,16.569,16.553,44.2373494]
[1673486796868,20.0,16.568,16.553,43.7373494]
[1673486797195,20.0,16.566,16.553,43.7373494]
[1673486797402,63.25,16.565,16.553,43.7373494]
[1673486798564,45.29,16.565,16.553,43.7373494]
[1673486798792,45.28,16.568,16.554,18.92]
[1673486798975,45.28,16.569,16.554,64.24]
[1673486799186,45.28,16.569,16.555,20.0]
[1673486800766,17.96,16.568,16.555,20.0]
[1673486801405,45.28,16.569,16.557,20.0]
[1673486801630,24.98,16.57,16.558,20.0]
[1673486801829,24.98,16.57,16.559,21.92]
[1673486802018,45.26,16.577,16.56,65.31]
[1673486802231,45.26,16.577,16.56,20.0]
[1673486802441,45.26,16.577,16.561,20.0]
[1673486802666,24.98,16.58,16.562,65.3]
[1673486802988,45.24,16.584,16.563,0.96]
[1673486803172,114.085,16.586,16.563,0.96]
[1673486803173,45.24,16.585,16.564,46.26]
[1673486803380,45.24,16.585,16.565,37.96]
[1673486803603,45.23,16.589,16.566,46.25]
[1673486803816,45.57598393,16.589,16.567,19.71441907]
[1673486804030,45.57598393,16.589,16.569,20.0]
[1673486804243,45.57598393,16.589,16.57,84.99441907]
[1673486804464,45.57598393,16.589,16.57,85.95441907]
[1673486804777,45.57598393,16.589,16.571,19.14496728]
[1673486804973,45.57598393,16.589,16.573,21.75441907]
[1673486805390,45.57598393,16.589,16.573,40.89938635]
[1673486805816,17.96,16.588,16.573,40.89938635]
[1673486806028,20.0,16.587,16.573,47.02441907]
[1673486806232,20.0,16.587,16.57,20.0]
[1673486806233,17.0,16.586,16.571,45.28]
[1673486806447,46.2,16.585,16.571,45.28]
[1673486806657,17.0,16.584,16.571,45.28]
[1673486806869,0.96,16.583,16.571,45.28]
[1673486807504,45.23,16.586,16.571,45.28]
[1673486807724,45.23,16.588,16.571,64.42496728]
[1673486807917,0.34598393,16.586,16.572,21.54723365]
[1673486808133,0.34598393,16.586,16.573,45.27]
[1673486808346,0.34598393,16.586,16.574,1.63503891]
[1673486808659,0.34598393,16.586,16.574,20.78000619]
[1673486808984,0.34598393,16.586,16.575,20.0]
[1673486809195,0.34598393,16.586,16.576,1.63503891]
[1673486809505,0.34598393,16.586,16.577,45.26]
[1673486809701,0.34598393,16.586,16.578,20.0]
[1673486810336,0.34598393,16.586,16.574,20.0]
[1673486810548,0.34598393,16.586,16.575,45.26]
[1673486810763,0.34598393,16.586,16.573,45.27]
[1673486811398,0.34598393,16.586,16.572,65.27]
[1673486811593,45.57598393,16.586,16.572,65.27]
[1673486811811,17.0,16.585,16.572,45.27]
[1673486812023,20.0,16.584,16.57,45.28]
[1673486812228,17.0,16.583,16.57,45.28]
[1673486813179,17.0,16.583,16.571,20.0]
[1673486813180,24.66,16.58,16.571,20.0]
[1673486813379,17.0,16.579,16.568,20.0]
[1673486813592,0.96,16.578,16.568,20.0]
[1673486814757,46.22,16.578,16.56,108.8223]
[1673486814969,20.0,16.576,16.56,108.8223]
[1673486815170,62.26,16.575,16.56,108.8223]
[1673486815376,20.96,16.574,16.558,118.0162]
[1673486815595,62.27,16.573,16.559,65.31]
[1673486816545,45.27,16.573,16.56,20.0]
[1673486816737,45.26,16.578,16.56,20.0]
[1673486816950,45.25,16.579,16.562,20.0]
[1673486817158,45.25,16.579,16.562,40.0]
[1673486817382,45.25,16.579,16.563,18.92]
[1673486817815,20.0,16.578,16.563,18.92]
[1673486818004,63.22,16.577,16.562,42.74569913]
[1673486818218,63.22,16.577,16.562,22.74569913]
[1673486818860,63.22,16.577,16.562,2.74569913]
[1673486819052,46.22,16.577,16.563,45.3]
[1673486819273,45.25,16.579,16.564,38.92]
[1673486819475,45.25,16.579,16.565,45.29]
[1673486819893,45.25,16.579,16.566,20.0]
[1673486820107,24.83,16.58,16.566,20.0]
[1673486820330,24.83,16.58,16.567,0.96]
[1673486820542,0.8072568,16.584,16.568,45.28]
[1673486820856,0.8072568,16.584,16.57,20.0]
[1673486821047,0.8072568,16.584,16.571,45.28]
[1673486821258,0.8072568,16.584,16.572,20.0]
[1673486821468,0.8072568,16.584,16.573,45.27]
[1673486822102,0.8072568,16.584,16.572,20.0]
[1673486822103,45.24,16.583,16.572,20.0]
[1673486822312,0.8072568,16.584,16.571,20.0]
[1673486822532,0.8072568,16.584,16.572,45.27]
[1673486822941,0.8072568,16.584,16.571,65.28]
[1673486823263,0.8072568,16.584,16.572,20.0]
[1673486823479,0.8072568,16.584,16.573,44.18]
[1673486824094,0.8072568,16.584,16.572,20.0]
[1673486824755,0.8072568,16.584,16.571,20.0]
[1673486825274,124.33,16.58,16.568,1.14221313]
[1673486825461,65.25,16.579,16.568,1.14221313]
[1673486825666,82.25,16.579,16.568,1.14221313]
[1673486825881,0.96,16.578,16.568,1.14221313]
[1673486826108,0.96,16.578,16.562,1.603486]
[1673486826109,45.26,16.577,16.562,1.603486]
[1673486826306,17.96,16.576,16.562,1.603486]
[1673486826727,45.26,16.575,16.563,38.25]
[1673486827050,17.96,16.574,16.563,38.25]
[1673486827372,17.96,16.574,16.562,1.603486]
[1673486827774,24.7,16.57,16.562,1.603486]
[1673486827995,17.0,16.569,16.562,1.603486]
[1673486831152,24.7,16.57,16.562,1.603486]
[1673486831769,45.26,16.575,16.562,21.603486]
[1673486831980,45.26,16.577,16.562,21.603486]
[1673486832209,45.26,16.577,16.562,40.74845328]
[1673486832418,45.26,16.578,16.563,47.22]
[1673486832628,45.26,16.578,16.564,20.0]
[1673486833779,37.96,16.577,16.564,20.0]
[1673486834323,45.26,16.578,16.563,65.3]
[1673486834631,65.25,16.579,16.563,39.14496728]
[1673486834841,65.25,16.579,16.564,64.44496728]
[1673486835162,65.25,16.579,16.563,65.3]
[1673486835688,20.0,16.577,16.563,65.3]
[1673486835885,63.22,16.576,16.563,20.0]
[1673486838620,63.22,16.576,16.562,21.603486]
[1673486841130,63.22,16.576,16.562,1.603486]
[1673486841576,20.0,16.575,16.562,1.603486]
[1673486841782,62.27,16.574,16.562,1.603486]
[1673486842000,24.65,16.57,16.562,1.603486]
[1673486842188,17.0,16.569,16.562,1.603486]
[1673486842524,62.28,16.569,16.562,1.603486]
[1673486843455,0.96,16.568,16.562,1.603486]
[1673486844515,45.28,16.569,16.562,1.603486]
[1673486844735,24.65,16.57,16.562,1.603486]
[1673486845981,62.28,16.569,16.562,1.603486]
[1673486847243,45.28,16.569,16.562,1.603486]
[1673486847455,24.65,16.57,16.562,1.603486]
[1673486848592,17.96,16.569,16.562,1.603486]
[1673486851443,63.24,16.569,16.562,1.603486]
[1673486851768,17.96,16.569,16.562,1.603486]
[1673486852934,45.27,16.574,16.562,1.603486]
[1673486853146,45.26,16.577,16.563,45.3]
[1673486853661,159.0356,16.578,16.564,20.0]
[1673486854483,17.0,16.577,16.564,20.0]
[1673486854695,45.25,16.582,16.566,21.82789835]
[1673486854905,45.24,16.583,16.568,1.82789835]
[1673486855137,45.24,16.583,16.569,47.2]
[1673486855321,1.94946993,16.584,16.57,1.59005615]
[1673486855530,1.94946993,16.584,16.572,20.0]
[1673486855964,0.96,16.583,16.572,20.0]
[1673486856917,18.94946993,16.584,16.574,20.0]
[1673486856918,1.94946993,16.584,16.574,20.0]
[1673486857658,1.94946993,16.584,16.573,19.14496728]
[1673486857867,1.94946993,16.584,16.572,65.27]
[1673486858090,1.94946993,16.584,16.57,19.14496728]
[1673486858308,24.89,16.58,16.571,20.0]
[1673486858494,17.0,16.579,16.56,115.8375]
[1673486858706,20.0,16.577,16.562,113.696086]
[1673486858920,63.22,16.576,16.562,158.996086]
[1673486859335,17.96,16.576,16.562,158.996086]
[1673486859549,17.0,16.576,16.562,178.996086]
[1673486859759,17.0,16.576,16.564,65.3]
[1673486861024,17.0,16.577,16.564,65.3]
[1673486861645,45.24,16.583,16.565,56.14496728]
[1673486861890,47.18946993,16.584,16.566,47.21]
[1673486862068,1.94946993,16.584,16.567,20.0]
[1673486862279,1.94946993,16.584,16.568,46.24]
[1673486862497,1.94946993,16.584,16.569,20.0]
[1673486862816,1.94946993,16.584,16.57,84.2]
[1673486863222,1.94946993,16.584,16.57,103.34496728]
[1673486863433,1.94946993,16.584,16.571,20.0]
[1673486863661,1.94946993,16.584,16.572,45.27]
[1673486864492,1.94946993,16.584,16.573,20.0]
[1673486864703,0.96,16.583,16.574,44.11]
[1673486865133,0.96,16.583,16.573,20.0]
[1673486865337,0.96,16.583,16.572,43.29]
[1673486865966,0.96,16.583,16.571,61.71]
[1673486866823,0.96,16.583,16.571,41.71]
[1673486867771,0.96,16.583,16.57,174.7789]
[1673486868178,37.96,16.583,16.57,137.6889]
[1673486869241,45.25,16.582,16.57,137.6889]
[1673486869447,1.94946993,16.584,16.571,20.0]
[1673486871217,45.24,16.583,16.571,20.0]
[1673486871428,1.94946993,16.584,16.571,20.0]
[1673486872924,1.94946993,16.584,16.57,188.8589]
[1673486873457,1.94946993,16.584,16.571,20.0]
[1673486873849,1.94946993,16.584,16.572,20.48]
[1673486875024,1.94946993,16.584,16.572,18.56]
[1673486875228,0.96,16.583,16.571,37.35]
[1673486875759,0.96,16.583,16.571,17.35]
[1673486876172,20.96,16.583,16.571,17.35]
[1673486876388,17.0,16.582,16.57,152.9489]
[1673486878577,17.0,16.583,16.57,152.9489]
[1673486880903,21.94946993,16.584,16.566,19.14496728]
[1673486880904,24.66,16.58,16.566,19.14496728]
[1673486881117,20.0,16.578,16.562,1.603486]
[1673486881330,24.65,16.57,16.562,1.603486]
[1673486882400,17.96,16.569,16.562,1.603486]
[1673486883237,20.0,16.568,16.562,1.603486]
[1673486883449,17.0,16.567,16.562,1.603486]
[1673486883971,17.0,16.567,16.555,40.0636161]
[1673486883972,20.0,16.565,16.555,40.0636161]
[1673486884166,17.0,16.564,16.555,40.0636161]
[1673486885237,0.96,16.563,16.555,40.0636161]
[1673486885446,0.96,16.562,16.555,40.0636161]
[1673486885849,17.0,16.565,16.555,40.0636161]
[1673486886069,0.96,16.564,16.555,40.0636161]
[1673486886394,0.96,16.563,16.555,40.0636161]
[1673486887861,24.66,16.56,16.555,40.0636161]
[1673486888076,17.0,16.559,16.555,40.0636161]
[1673486889236,0.96,16.558,16.555,40.0636161]
[1673486893226,24.66,16.56,16.555,40.0636161]
[1673486894591,44.17460409,16.565,16.555,40.0636161]
[1673486894779,144.35,16.57,16.555,40.0636161]
[1673486894995,144.35,16.57,16.556,33.59]
[1673486895197,44.79,16.57,16.556,33.59]
[1673486896066,17.96,16.568,16.556,33.59]
[1673486896251,44.79,16.57,16.556,33.59]
[1673486897517,20.0,16.569,16.556,33.59]
[1673486899195,47.49569735,16.574,16.556,33.59]
[1673486899407,1.603486,16.576,16.557,168.66706728]
[1673486899624,1.603486,16.576,16.558,16.97923293]
[1673486899832,0.1818648,16.576,16.56,20.0]
[1673486900050,20.1818648,16.576,16.561,37.20923293]
[1673486900258,20.1818648,16.576,16.561,35.48]
[1673486900898,17.0,16.575,16.562,20.0]
[1673486901112,17.0,16.575,16.563,14.1]
[1673486901819,0.1818648,16.575,16.563,14.1]
[1673486902765,0.1818648,16.575,16.564,1.53800415]
[1673486902975,0.1818648,16.575,16.566,1.71187435]
[1673486903203,0.1818648,16.575,16.564,1.72892333]
[1673486903526,0.1818648,16.575,16.566,1.74102044]
[1673486903728,0.1818648,16.575,16.567,13.32]
[1673486903942,0.1818648,16.575,16.568,2.38179547]
[1673486904260,0.1818648,16.575,16.569,13.32]
[1673486904466,0.1818648,16.575,16.57,2.38179547]
[1673486904785,0.1818648,16.575,16.571,14.52]
[1673486905001,0.1818648,16.575,16.572,2.38179547]
[1673486905605,0.1818648,16.575,16.571,2.38179547]
[1673486905820,0.1818648,16.575,16.57,2.38179547]
[1673486907731,0.1818648,16.575,16.57,22.38179547]
[1673486907923,0.1818648,16.575,16.571,20.0]
[1673486908133,0.1818648,16.575,16.572,2.38179547]
[1673486914762,0.1818648,16.575,16.571,2.38179547]
[1673486914973,0.1818648,16.575,16.571,22.38179547]
[1673486916140,0.1818648,16.575,16.572,20.0]
[1673486916344,0.1818648,16.575,16.573,2.38179547]